[Event "CCT Airthings Masters Play-In 2023"]
[Site "Online"]
[Date "2023.02.03"]
[Round "2"]
[White "amintabatabaei"]
[Black "gmjlh"]
[Result "1/2-1/2"]
[ECO "D02"]
[WhiteElo "2649"]
[BlackElo "2508"]
[Annotator "TA"]
[PlyCount "321"]
[EventDate "2023.02.03"]
[EventType "swiss"]
[EventCountry "NET"]
[SourceTitle "playchess.com"]
[Source "ChessBase"]
[SourceQuality "1"]
[TimeControl "600+2"]

{[%evp 147,321,34,93,93,93,92,96,96,96,96,96,96,96,96,96,95,95,95,95,95,95,95,189,95,95,95,95,95,95,95,95,95,95,95,95,95,95,95,95,95,95,95,95,95,95,95,95,95,95,95,95,95,95,95,95,0,0,0,95,95,95,45,45,0,40,0,0,0,0,0,46,0,0,0,0,0,25,0,0,0,0,0,0,0,0,0,0,0,0,0,0,0,0,0,0,0,0,0,0,0,44,0,7,0,0,0,0,0,0,0,0,0,0,0,0,0,0,0,0,0,0,-49,-49,-187,-187,-202,-199,-267,-212,-299,-282,-270,-258,-232,-171,-145,-6,-7,0,0,0,0,0,0,0,-8,-8,-8,-8,-8,-8,-8,-8,-8,-8,-8,0,0,0,0,0,0,0,0,0,0,0,0,0,0,0,0,0,0,0,0]} 1. d4 {[%emt 0:00:04]} Nf6 {[%emt 0:00:04]} 2. Nf3 {[%emt 0:00:02]} d5 {[%emt 0:00:01]} 3. c3 {[%emt 0:00:01]} e6 {[%emt 0:00:12]} 4. Bf4 {[%emt 0:00:01]} Bd6 {[%emt 0:00:02]} 5. e3 {[%emt 0:00:01]} Bxf4 {[%emt 0:00:03]} 6. exf4 {[%emt 0:00:00]} O-O {[%emt 0:00:03]} 7. Nbd2 {[%emt 0:00:02]} b6 {[%emt 0:00:01]} 8. h4 {[%emt 0:00:00]} c5 {[%emt 0:00:02]} 9. h5 {[%emt 0:00:03]} Ba6 {[%emt 0:00:07]} 10. Bxa6 {[%emt 0:00:04]} Nxa6 {[%emt 0:00:01]} 11. h6 {[%emt 0:00:00]} g6 {[%emt 0:00:03]} 12. Qe2 {[%emt 0:00:01]} c4 {[%emt 0:00:19]} 13. Ne5 {[%emt 0:00:07]} Nc7 {[%emt 0:00:07]} 14. g4 {[%emt 0:00:14]} Nce8 {[%emt 0:00:04]} 15. g5 {[%emt 0:01:54]} Nd7 {[%emt 0:00:02]} 16. Ndf3 {[%emt 0:00:10]} Nxe5 {[%emt 0:00:43]} 17. fxe5 {[%emt 0:00:38]} b5 {[%emt 0:00:24]} 18. Qd2 {[%emt 0:00:06]} a5 {[%emt 0:00:08]} 19. Ke2 {[%emt 0:00:22]} Rb8 {[%emt 0:00:13]} 20. a3 {[%emt 0:00:31]} Qe7 {[%emt 0:00:31]} 21. Nh2 {[%emt 0:00:05]} Nc7 {[%emt 0:00:47]} 22. Ng4 {[%emt 0:00:04]} Rb7 {[%emt 0:00:08]} 23. Kf3 {[%emt 0:00:12]} Rfb8 {[%emt 0:00:03]} 24. Kg3 {[%emt 0:00:01]} Ne8 {[%emt 0:00:58]} 25. Kh4 {[%emt 0:00:07]} a4 {[%emt 0:01:28]} 26. Rh3 {[%emt 0:00:03]} Qd8 {[%emt 0:00:12]} 27. Rf3 {[%emt 0:00:04]} Rc7 {[%emt 0:00:36]} 28. Re1 {[%emt 0:00:02]} Rbb7 {[%emt 0:00:01]} 29. Rf4 {[%emt 0:00:04]} Ra7 {[%emt 0:00:01]} 30. Re3 {[%emt 0:00:03]} Rab7 {[%emt 0:00:01]} 31. Ref3 {[%emt 0:00:01]} Ra7 {[%emt 0:00:00]} 32. Rg3 {[%emt 0:01:14]} Rcb7 {[%emt 0:00:01]} 33. Ne3 {[%emt 0:01:01]} Rd7 {[%emt 0:00:02]} 34. Rgf3 {[%emt 0:00:03]} Rdb7 {[%emt 0:00:01]} 35. Nc2 {[%emt 0:00:01]} Rd7 {[%emt 0:00:08]} 36. Nb4 {[%emt 0:00:02]} Rdc7 {[%emt 0:00:01]} 37. Qe1 {[%emt 0:00:02]} Rab7 {[%emt 0:00:15]} 38. Na6 {[%emt 0:00:04]} Rc6 {[%emt 0:00:10]} 39. Nb4 {[%emt 0:00:18]} Rcb6 {[%emt 0:00:01]} 40. Qg1 {[%emt 0:00:09]} Re7 {[%emt 0:00:01]} 41. Qg4 {[%emt 0:00:05]} Ra7 {[%emt 0:00:04]} 42. Nc2 {[%emt 0:00:05]} Rd7 {[%emt 0:00:04]} 43. Ne3 {[%emt 0:00:06]} Ra7 {[%emt 0:00:04]} 44. Qh3 {[%emt 0:00:09]} Rab7 {[%emt 0:00:04]} 45. Ng4 {[%emt 0:00:07]} Ra7 {[%emt 0:00:02]} 46. Nh2 {[%emt 0:00:17]} Rab7 {[%emt 0:00:01]} 47. Qg4 {[%emt 0:00:01]} Ra7 {[%emt 0:00:01]} 48. Nf1 {[%emt 0:00:01]} Rab7 {[%emt 0:00:01]} 49. Kh3 {[%emt 0:00:03]} Ra7 {[%emt 0:00:01]} 50. Ne3 {[%emt 0:00:01]} Rab7 {[%emt 0:00:01]} 51. Nc2 {[%emt 0:00:16]} Ra7 {[%emt 0:00:02]} 52. Rg3 {[%emt 0:00:09]} Rab7 {[%emt 0:00:00]} 53. Ne1 {[%emt 0:00:00]} Ra7 {[%emt 0:00:01]} 54. Rgf3 {[%emt 0:00:14]} Rab7 {[%emt 0:00:02]} 55. Qg3 {[%emt 0:00:14]} Ra7 {[%emt 0:00:01]} 56. Ng2 {[%emt 0:00:01]} Rc7 {[%emt 0:00:02]} 57. Ne3 {[%emt 0:00:01]} Ra7 {[%emt 0:00:05]} 58. Qh4 {[%emt 0:00:10]} Rbb7 {[%emt 0:00:04]} 59. Qg4 {[%emt 0:00:04]} Rb6 {[%emt 0:00:04]} 60. Rg3 {[%emt 0:00:02]} Rd7 {[%emt 0:00:05]} 61. Rg1 {[%emt 0:00:03]} Ra7 {[%emt 0:00:01]} 62. Rf3 {[%emt 0:00:05]} Rab7 {[%emt 0:00:01]} 63. Rfg3 {[%emt 0:00:01]} Ra7 {[%emt 0:00:07]} 64. f4 {[%emt 0:00:01]} Rd7 {[%emt 0:00:16]} 65. Qf3 {[%emt 0:00:01]} Nc7 {[%emt 0:00:03]} 66. Ng4 {[%emt 0:00:01]} Ne8 {[%emt 0:00:01]} 67. Kh2 {[%emt 0:00:24]} Kh8 {[%emt 0:00:09]} 68. R1g2 {[%emt 0:00:01]} Ra6 {[%emt 0:00:03]} 69. Qe3 {[%emt 0:00:03]} Rb6 {[%emt 0:00:07]} 70. Qd2 {[%emt 0:00:01]} Ra6 {[%emt 0:00:00]} 71. Ne3 {[%emt 0:00:01]} Nc7 {[%emt 0:00:04]} 72. Rf2 {[%emt 0:00:02]} Rb6 {[%emt 0:00:04]} 73. Qc2 {[%emt 0:00:02]} Ra6 {[%emt 0:00:03]} 74. Kh3 {[%emt 0:00:05]} Rb6 {[%emt 0:00:01]} (74... b4 $1 $14) 75. Kh4 {[%emt 0:00:00]} Ra6 {[%emt 0:00:01]} 76. Ng4 {[%emt 0:00:02]} Ne8 {[%emt 0:00:01]} 77. Nf6 {[%emt 0:00:02]} Nxf6 {[%emt 0:00:19]} 78. exf6 {[%emt 0:00:12]} Qc7 {[%emt 0:00:26]} 79. Re3 {[%emt 0:00:03]} Ra8 {[%emt 0:00:03]} 80. Re5 {[%emt 0:00:01]} Rg8 {[%emt 0:00:02]} 81. Rfe2 {[%emt 0:00:03]} Rdd8 {[%emt 0:00:07]} 82. R2e3 {[%emt 0:00:02]} Rgf8 {[%emt 0:00:21]} 83. Qe2 {[%emt 0:00:03]} Qd7 {[%emt 0:00:24]} 84. Kg3 {[%emt 0:00:02]} Kg8 {[%emt 0:00:12]} (84... Ra8 $16 {was worth a try.}) 85. Qe1 {[%emt 0:00:05]} (85. f5 $1 $18 {[%cal Rf5e6]} exf5 86. Qf3) 85... Rc8 {[%emt 0:00:02]} 86. Kf3 {[%emt 0:00:07]} Rc6 {[%emt 0:00:13]} 87. Qh4 {[%emt 0:00:01]} Kh8 {[%emt 0:00:02]} 88. Qh3 {[%emt 0:00:13]} Rg8 {[%emt 0:00:01]} 89. Kf2 {[%emt 0:00:05]} Rb6 {[%emt 0:00:01]} 90. Qf3 {[%emt 0:00:02]} Rc6 {[%emt 0:00:01]} 91. Kg3 {[%emt 0:00:03]} Rb6 {[%emt 0:00:00]} 92. Kh4 {[%emt 0:00:00]} Ra6 {[%emt 0:00:01]} 93. Re1 {[%emt 0:00:12]} Rb6 {[%emt 0:00:00]} 94. R5e2 {[%emt 0:00:00]} Ra6 {[%emt 0:00:01]} 95. Qe3 {[%emt 0:00:02]} Rb6 {[%emt 0:00:04]} 96. Qg3 {[%emt 0:00:06]} Ra6 {[%emt 0:00:01]} 97. Rf2 {[%emt 0:00:10]} Rb6 {[%emt 0:00:01]} 98. Re5 {[%emt 0:00:05]} Ra6 {[%emt 0:00:01]} 99. Ree2 {[%emt 0:00:08]} Rb6 {[%emt 0:00:01]} 100. Qe3 {[%emt 0:00:00]} Ra6 {[%emt 0:00:01]} 101. Qe5 {[%emt 0:00:00]} (101. Kg3 $16) 101... Qd6 $1 $11 {[%emt 0:00:05]} 102. Qe3 {[%emt 0:00:21]} ({White should play} 102. Kg3 $11) 102... Qd7 $1 $16 {[%emt 0:00:01]} 103. Kg3 {[%emt 0:00:01]} Rc6 {[%emt 0:00:01]} 104. Qe5 {[%emt 0:00:01]} (104. Rg2 $16) 104... Qd6 $14 {[%emt 0:00:01]} 105. Qe3 {[%emt 0:00:06]} Qd7 $1 {[%emt 0:00:00]} 106. Qd2 {[%emt 0:00:01]} Rb6 {[%emt 0:00:01]} 107. Re5 {[%emt 0:00:01]} Ra6 {[%emt 0:00:01]} 108. Kf3 {[%emt 0:00:02]} Rb6 {[%emt 0:00:00]} (108... Rb8 $11 {should be considered.}) 109. Ke2 {[%emt 0:00:00]} (109. Qe3 $1 $14) 109... Ra6 {[%emt 0:00:01]} 110. Qc2 {[%emt 0:00:01]} Rb6 {[%emt 0:00:01]} 111. Ke1 {[%emt 0:00:00]} Ra6 {[%emt 0:00:00]} 112. Rfe2 {[%emt 0:00:01]} Rb6 {[%emt 0:00:01]} 113. Qd2 {[%emt 0:00:01]} Ra6 {[%emt 0:00:00]} 114. Rg2 {[%emt 0:00:02]} Rb6 {[%emt 0:00:00]} 115. Qf2 {[%emt 0:00:02]} Ra6 {[%emt 0:00:01]} 116. Qh4 {[%emt 0:00:01]} Rb6 {[%emt 0:00:01]} 117. Kf1 {[%emt 0:00:00]} Ra6 {[%emt 0:00:00]} 118. Rge2 {[%emt 0:00:19]} Rb6 {[%emt 0:00:01]} 119. Qg4 {[%emt 0:00:03]} Ra6 {[%emt 0:00:01]} 120. R5e3 {[%emt 0:00:01]} Rb6 {[%emt 0:00:01]} 121. Rg3 {[%emt 0:00:01]} Rc6 {[%emt 0:00:00]} 122. Qf3 {[%emt 0:00:00]} Rb6 {[%emt 0:00:01]} 123. Qe3 {[%emt 0:00:01]} Ra6 {[%emt 0:00:01]} 124. Qe5 {[%emt 0:00:00]} Qd6 {[%emt 0:00:00]} 125. Qxd6 {[%emt 0:00:03]} Rxd6 {[%emt 0:00:02]} 126. Re5 {[%emt 0:00:00]} Rgd8 {[%emt 0:00:03]} 127. Kf2 {[%emt 0:00:02]} Kg8 {[%emt 0:00:01]} 128. Rge3 {[%emt 0:00:01]} Kf8 {[%emt 0:00:00]} 129. Kf3 {[%emt 0:00:01]} Rc8 {[%emt 0:00:03]} 130. Re1 {[%emt 0:00:01]} Ra8 {[%emt 0:00:01]} 131. R5e2 {[%emt 0:00:00]} Rc8 {[%emt 0:00:08]} 132. Kg4 {[%emt 0:00:05]} Rcd8 {[%emt 0:00:01]} 133. Kh4 {[%emt 0:00:01]} Rc8 {[%emt 0:00:01]} 134. f5 {[%emt 0:00:08]} (134. Rf2 $11) 134... gxf5 $15 {[%emt 0:00:02]} 135. g6 {[%emt 0:00:00]} ({White should try} 135. Rf1 $15) 135... fxg6 $19 {[%emt 0:00:34]} 136. Rxe6 {[%emt 0:00:02]} Rxe6 {[%emt 0:00:01]} 137. Rxe6 {[%emt 0:00:01] [#]} Re8 $1 {[%emt 0:00:00]} 138. Rb6 {[%emt 0:00:15] [#]} (138. Rd6 $142 Re4+ 139. Kg3) 138... Re4+ $1 $19 {[%emt 0:00:01]} 139. Kg3 {[%emt 0:00:00]} Kf7 {[%emt 0:00:00]} 140. Rxb5 {[%emt 0:00:02]} Kxf6 {[%emt 0:00:03]} 141. Rxd5 {[%emt 0:00:01]} Re2 {[%emt 0:00:11]} (141... g5 $17 {And now ...Re3+ would win.} 142. Rc5 Re3+ 143. Kf2 f4) 142. Rd7 $11 {[%emt 0:00:04]} Rxb2 {[%emt 0:00:21]} 143. Rxh7 {[%emt 0:00:01]} Rb3 {[%emt 0:00:18]} 144. Ra7 {[%emt 0:00:06]} Rxc3+ {[%emt 0:00:01]} 145. Kg2 {[%emt 0:00:01]} Rb3 {[%emt 0:00:01]} 146. h7 {[%emt 0:00:03]} Rb8 {[%emt 0:00:02]} (146... Rxa3 147. h8=Q+ Kg5 148. Ra6 Ra2+ 149. Kf3 Ra3+ 150. Ke2 Ra2+ 151. Ke3 Ra3+ 152. Kd2 Ra2+ 153. Kc3 $18) 147. Rxa4 {[%emt 0:00:02]} Rh8 {[%emt 0:00:02]} (147... c3 {keeps more tension.} 148. Rc4 Rh8 149. Rc7 c2) 148. Rxc4 {[%emt 0:00:03]} (148. Ra7 {is more complex.} c3 149. Rc7 c2 150. a4) 148... Rxh7 {[%emt 0:00:01]} 149. a4 {[%emt 0:00:00]} Ra7 {[%emt 0:00:02]} 150. Kf3 {[%emt 0:00:02]} Ra5 {[%emt 0:00:06]} 151. Rb4 {[%emt 0:00:02]} g5 {[%emt 0:00:02]} 152. Rb6+ {[%emt 0:00:01]} Ke7 {[%emt 0:00:01]} 153. Rb5 {[%emt 0:00:03]} Rxb5 {[%emt 0:00:06]} 154. axb5 {[%emt 0:00:00]} Kd6 {[%emt 0:00:01]} 155. Kg3 {[%emt 0:00:02]} Kd5 {[%emt 0:00:02]} 156. Kf3 {[%emt 0:00:00]} g4+ {[%emt 0:00:01]} (156... Kxd4 {leads to mate.} 157. b6 Ke5 158. b7 g4+ 159. Kg3 Ke6 160. b8=Q (160. b8=B Kf7 $11) 160... Kd5 161. Qf4) 157. Kf4 {[%emt 0:00:01]} Kd6 {[%emt 0:00:02]} 158. Kg3 {[%emt 0:00:01]} Kd5 {[%emt 0:00:07]} 159. Kf4 {[%emt 0:00:01]} Kd6 {[%emt 0:00:04]} 160. Kg3 {[%emt 0:00:01]} Kd5 {[%emt 0:00:01]} 161. Kf4 {[%emt 0:00:00]} 1/2-1/2

[Event "CCT Airthings Masters Play-In 2023"]
[Site "Online"]
[Date "2023.02.03"]
[Round "2"]
[White "Parhamov"]
[Black "Alexandr_Predke"]
[Result "1/2-1/2"]
[ECO "D02"]
[WhiteElo "2641"]
[BlackElo "2494"]
[Annotator "TA"]
[PlyCount "104"]
[EventDate "2023.02.03"]
[EventType "swiss"]
[EventCountry "NET"]
[SourceTitle "playchess.com"]
[Source "ChessBase"]
[SourceQuality "1"]
[TimeControl "600+2"]

{[%evp 9,104,1,12,-8,-3,-5,10,0,8,0,12,0,0,0,-9,-14,-16,-23,14,16,13,28,79,73,64,50,57,18,31,21,35,-28,42,47,26,41,106,-33,-31,-25,-26,-37,-28,-54,-61,-58,-60,-79,-67,-147,-150,-134,-146,-138,-135,-130,-134,-129,-126,-125,-125,-116,-120,-116,-72,-75,-18,-18,-18,-18,0,-141,-74,-83,-22,-27,-3,-3,-3,-3,-3,-3,-3,-3,-3,-3,-3,-3,0,0,0,0,0,0,0,0,0]} 1. d4 {[%emt 0:00:08]} Nf6 {[%emt 0:00:04]} 2. c3 {[%emt 0:00:01]} d5 {[%emt 0:00:08]} 3. Nf3 {[%emt 0:00:04]} c6 {[%emt 0:00:03]} 4. Qc2 {[%emt 0:00:12]} g6 {[%emt 0:00:08]} 5. Bf4 {[%emt 0:00:01]} Bf5 {[%emt 0:00:01] [#]} 6. Qc1 $146 {[%emt 0:00:01] D02: 1 d4 d5 2 Nf3 sidelines, including 2...Nf6 3 g3 and 2...Nf6 3 Bf4.} (6. Qb3 $5 {[%cal Rb3b7]}) ({Predecessor:} 6. Qb3 Qb6 7. h3 Bg7 8. e3 Nbd7 9. Nbd2 O-O 10. Be2 Ne4 11. Nxe4 Bxe4 12. O-O {½-½ Tabatabaei,M (2655)-Deac,B (2700) Speed Chess Q2 blitz 2022 (6)}) 6... Nbd7 {[%emt 0:00:14]} 7. h3 {[%emt 0:00:03]} h6 {[%emt 0:00:10]} 8. e3 {[%emt 0:00:06]} g5 {[%emt 0:00:09]} 9. Bh2 {[%emt 0:00:02]} Bg7 {[%emt 0:00:06]} 10. c4 {[%emt 0:00:09]} Ne4 {[%emt 0:01:16]} 11. Nc3 {[%emt 0:00:06]} Qa5 {[%emt 0:00:28]} 12. Nd2 {[%emt 0:00:14]} Nxd2 {[%emt 0:01:06]} 13. Qxd2 {[%emt 0:00:01]} e5 {[%emt 0:01:27]} 14. cxd5 {[%emt 0:00:13]} exd4 {[%emt 0:00:12]} 15. exd4 {[%emt 0:00:01]} cxd5 {[%emt 0:00:32]} (15... O-O $11) 16. Be2 {[%emt 0:00:24]} O-O {[%emt 0:00:04]} 17. O-O {[%emt 0:00:18]} (17. h4 $5 {[%cal Rh4g5]}) 17... Rfe8 {[%emt 0:00:07]} 18. a3 {[%emt 0:00:16]} Rac8 {[%emt 0:00:12][%cal Od7c5]} 19. Rad1 {[%emt 0:00:30]} Nb6 {[%emt 0:00:22]} 20. Rfe1 {[%emt 0:00:01]} (20. Be5 $14) 20... Re6 {[%emt 0:00:23] [#]} (20... Na4 $11) 21. Be5 $1 $14 {[%emt 0:00:32]} Bxe5 {[%emt 0:00:15]} 22. dxe5 {[%emt 0:00:01]} Rxe5 {[%emt 0:00:21] [#]} ({Black should play} 22... Nc4 $14 23. Bxc4 (23. Qxd5 Qxd5 24. Nxd5 Nxe5 $14) 23... dxc4) 23. f4 {[%emt 0:00:15]} (23. b4 $1 $16 {[%cal Rb4a5]} Qxa3 24. Nb5 Rxe2 25. Qxe2 Qxb4 26. Nxa7) 23... Qc5+ $15 {[%emt 0:00:38]} 24. Kh1 {[%emt 0:00:06]} gxf4 {[%emt 0:00:01]} 25. Qxf4 {[%emt 0:00:02]} Qe3 {[%emt 0:00:03] Dodges Qg3+} 26. Qf1 {[%emt 0:00:23]} Rce8 $1 {[%emt 0:00:19] Threatens to win with ...d4.} 27. Kh2 $1 {[%emt 0:00:18] Black must now prevent Bb5.} Qg5 {[%emt 0:00:15]} 28. Rd4 {[%emt 0:00:22]} Re3 {[%emt 0:00:16]} 29. Qf2 {[%emt 0:00:02]} (29. Red1 $15) 29... Bg6 $36 {[%emt 0:00:06][%mdl 2048] Keeping White busy.} 30. Kg1 {[%emt 0:00:57] [#]} Qe5 $1 {[%emt 0:00:04]} (30... Rxh3 $2 31. Rg4 Qe3 32. gxh3 $18) 31. Qf4 {[%emt 0:00:03]} Qxf4 {[%emt 0:00:17]} 32. Rxf4 {[%emt 0:00:01] [#]} Nc4 $1 {[%emt 0:00:31][%mdl 512]} 33. Nxd5 {[%emt 0:00:04]} Rxe2 {[%emt 0:00:01]} 34. Rxe2 {[%emt 0:00:01]} Rxe2 {[%emt 0:00:02]} 35. Rxc4 {[%emt 0:00:01]} Rxb2 {[%emt 0:00:04][%mdl 4096] Endgame KRB-KRN} 36. h4 {[%emt 0:00:10][%cal Bh3h4,Bh4h5][%mdl 32]} h5 {[%emt 0:00:06]} 37. g4 {[%emt 0:00:06]} hxg4 {[%emt 0:00:31]} (37... Kg7 $17 38. g5 Rb3) 38. h5 $1 $11 {[%emt 0:00:01]} Bd3 {[%emt 0:00:00]} 39. Rxg4+ {[%emt 0:00:12]} Kh7 {[%emt 0:00:02] And now ...Kh6 would win.} 40. Rf4 {[%emt 0:00:15]} (40. Nf6+ $1 $11 Kh6 41. Ng8+ Kxh5 42. Nf6+ Kh6 43. Ng8+ Kh7 44. Nf6+ Kh6 45. Ng8+ Kh7 46. Nf6+ Kh6) 40... Kh6 {[%emt 0:00:11]} ({Better is} 40... Rb1+ 41. Kh2 Rf1 42. Rxf1 Bxf1) 41. Rxf7 {[%emt 0:00:01]} Bc4 {[%emt 0:00:02]} ({But not} 41... Kxh5 42. Nf4+ Kg5 43. Nxd3 $11) ({Black should try} 41... Rb1+ $17 42. Kh2 Be4) 42. Rf5 {[%emt 0:00:04]} Bxd5 {[%emt 0:00:01]} 43. Rxd5 {[%emt 0:00:00] KR-KR. The position is equal.} b5 {[%emt 0:00:02]} 44. Kf1 {[%emt 0:00:11]} a5 {[%emt 0:00:01]} 45. a4 {[%emt 0:00:02]} bxa4 {[%emt 0:00:02] ( -> ...a3)} 46. Rxa5 {[%emt 0:00:01]} Ra2 {[%emt 0:00:04]} 47. Ke1 {[%emt 0:00:01]} a3 {[%emt 0:00:01]} (47... Rg2 {simplifies} 48. Rxa4 Kxh5 49. Ra5+ Kg4) 48. Kd1 {[%emt 0:00:01]} Ra1+ {[%emt 0:00:03]} 49. Kc2 {[%emt 0:00:01]} a2 {[%emt 0:00:00]} 50. Kb2 {[%emt 0:00:00]} Rh1 {[%emt 0:00:01]} 51. Kxa2 {[%emt 0:00:01]} Rxh5 {[%emt 0:00:02]} 52. Rxh5+ {[%emt 0:00:01]} Kxh5 {[%emt 0:00:00] Whites escaped into a draw.   Weighted Error Value: White=0.16 (very precise) /Black=0.14 (very precise)} 1/2-1/2